[Event "Bruges Masters 2018"]
[Site "Brugge"]
[Date "2018.08.16"]
[Round "3"]
[White "Boffa, Mauro"]
[Black "De Jong, Migchiel"]
[Result "0-1"]
[ECO "C16"]
[WhiteElo "2216"]
[BlackElo "2339"]
[Annotator "NA"]
[PlyCount "84"]
[EventDate "2018.08.12"]
[EventType "swiss"]
[EventCountry "BEL"]
[SourceTitle "playchess.com"]
[Source "ChessBase"]
[SourceQuality "1"]
[TimeControl "5400+30"]

1. d4 {[%emt 0:07:25]} e6 {[%emt 0:00:00]} 2. e4 {[%emt 0:00:05]} d5 {[%emt 0:00:06]} 3. Nc3 {[%emt 0:00:03]} Bb4 {[%emt 0:01:18]} 4. a3 {[%emt 0:01:32]} Bxc3+ {[%emt 0:00:50]} 5. bxc3 {[%emt 0:00:01]} Ne7 {[%emt 0:01:58]} 6. Qg4 {[%emt 0:00:26]} Ng6 {[%emt 0:01:18]} 7. e5 {[%emt 0:01:45]} b6 {[%emt 0:00:56]} 8. Nh3 {[%emt 0:14:37]} Ba6 {[%emt 0:02:37]} 9. Ng5 {[%emt 0:07:55]} Bxf1 {[%emt 0:00:59]} 10. Kxf1 {[%emt 0:10:01]} Qd7 {[%emt 0:03:40]} 11. h4 {[%emt 0:02:21]} h6 {[%emt 0:00:48]} 12. Nf3 {[%emt 0:08:32]} h5 {[%emt 0:02:04]} 13. Qg5 {[%emt 0:00:49]} Qa4 {[%emt 0:00:44]} 14. Qd2 {[%emt 0:08:13]} c5 {[%emt 0:00:31]} 15. Rh3 {[%emt 0:02:59]} Nc6 {[%emt 0:00:29]} 16. Rg3 {[%emt 0:00:34]} Rc8 {[%emt 0:02:04]} 17. Ng5 {[%emt 0:03:00]} Nce7 {[%emt 0:03:04]} 18. Rf3 {[%emt 0:02:32]} Rf8 {[%emt 0:00:51]} 19. Nh7 {[%emt 0:01:02]} Rg8 {[%emt 0:03:14]} 20. Ng5 {[%emt 0:02:25]} Nf5 {[%emt 0:01:16]} 21. Rxf5 {[%emt 0:01:59]} exf5 {[%emt 0:00:07]} 22. e6 {[%emt 0:00:39]} f6 {[%emt 0:00:43]} 23. Nf7 {[%emt 0:01:44]} Ke7 {[%emt 0:01:16]} 24. Ng5 {[%emt 0:04:59]} cxd4 {[%emt 0:00:48]} 25. Qd1 {[%emt 0:03:31]} d3 {[%emt 0:01:44]} 26. Qxh5 {[%emt 0:04:08]} Qg4 {[%emt 0:00:58]} 27. Qxg4 {[%emt 0:01:36]} fxg4 {[%emt 0:00:05]} 28. h5 {[%emt 0:00:47]} Ne5 {[%emt 0:00:35]} 29. Nf7 {[%emt 0:01:34]} d2 {[%emt 0:00:41]} 30. Bxd2 {[%emt 0:00:10]} Nc4 {[%emt 0:00:05]} 31. h6 {[%emt 0:02:03]} Nxd2+ {[%emt 0:00:13]} 32. Ke2 {[%emt 0:01:27]} Ne4 {[%emt 0:00:08]} 33. h7 {[%emt 0:00:26]} Rh8 {[%emt 0:00:09]} 34. Nxh8 {[%emt 0:02:29]} Rxh8 {[%emt 0:00:07]} 35. Rh1 {[%emt 0:00:43]} g3 {[%emt 0:00:18]} 36. f3 {[%emt 0:00:20]} Ng5 {[%emt 0:00:07]} 37. f4 {[%emt 0:00:06]} Rxh7 {[%emt 0:00:18]} 38. Rxh7 {[%emt 0:01:24]} Nxh7 {[%emt 0:00:07]} 39. f5 {[%emt 0:00:21]} Ng5 {[%emt 0:00:09]} 40. Ke3 {[%emt 0:00:23]} g6 {[%emt 0:00:43]} 41. fxg6 {[%emt 0:01:15]} Nxe6 {[%emt 0:00:23]} 42. Kf3 {[%emt 0:00:12]} f5 {[%emt 0:00:06]} 0-1

[Event "Bruges Masters 2018"]
[Site "Brugge"]
[Date "2018.08.16"]
[Round "3"]
[White "Den Hartog, Marijn"]
[Black "Ravi, Teja S."]
[Result "1-0"]
[ECO "B12"]
[WhiteElo "2118"]
[BlackElo "2374"]
[Annotator "ChessBase"]
[PlyCount "57"]
[EventDate "2018.08.12"]
[EventType "swiss"]
[EventCountry "BEL"]
[SourceTitle "playchess.com"]
[Source "ChessBase"]
[SourceQuality "1"]
[TimeControl "5400+30"]

1. e4 {[%emt 0:00:00]} c6 {[%emt 0:17:16]} 2. d4 {[%emt 0:00:00]} d5 {[%emt 0:00:06]} 3. e5 {[%emt 0:00:00]} Bf5 {[%emt 0:00:04]} 4. Nf3 {[%emt 0:00:00]} e6 {[%emt 0:00:03]} 5. Be2 {[%emt 0:00:00]} c5 {[%emt 0:00:33]} 6. Be3 {[%emt 0:00:21]} cxd4 {[%emt 0:00:16]} 7. Nxd4 {[%emt 0:00:03]} Ne7 {[%emt 0:00:06]} 8. Nd2 {[%emt 0:00:51]} Nbc6 {[%emt 0:00:08]} 9. N2f3 {[%emt 0:00:05]} Be4 {[%emt 0:01:15]} 10. O-O {[%emt 0:02:23]} Ng6 {[%emt 0:05:40]} 11. Bb5 {[%emt 0:00:14]} Qc7 {[%emt 0:08:16]} 12. Ng5 {[%emt 0:01:23]} Ngxe5 {[%emt 0:01:10]} 13. c4 {[%emt 0:00:10]} a6 {[%emt 0:07:18]} 14. Ba4 {[%emt 0:00:15]} Bd6 {[%emt 0:07:35]} 15. Ngxe6 {[%emt 0:00:15]} fxe6 {[%emt 0:01:01]} 16. Nxe6 {[%emt 0:00:04]} Qd7 {[%emt 0:08:33]} 17. cxd5 {[%emt 0:01:57]} b5 {[%emt 0:00:30]} 18. Bb3 {[%emt 0:22:48]} Nd8 {[%emt 0:07:28]} 19. Qd4 {[%emt 0:18:35]} Bf5 {[%emt 0:08:17]} 20. f4 {[%emt 0:02:43]} Nef7 {[%emt 0:02:46]} 21. Nxg7+ {[%emt 0:17:22]} Kf8 {[%emt 0:01:51]} 22. Qf6 {[%emt 0:12:24]} Bd3 {[%emt 0:00:49]} 23. Ne6+ {[%emt 0:02:35]} Ke8 {[%emt 0:04:54]} 24. Rfe1 {[%emt 0:02:46]} Rg8 {[%emt 0:04:55]} 25. Bb6 {[%emt 0:05:41]} Be7 {[%emt 0:03:38]} 26. Nxd8 {[%emt 0:00:16]} Nxd8 {[%emt 0:03:02]} 27. Bc5 {[%emt 0:01:29]} Rxg2+ {[%emt 0:01:31]} 28. Kxg2 {[%emt 0:00:20]} Qg4+ {[%emt 0:00:16]} 29. Kf2 {[%emt 0:00:51]} 1-0

[Event "Bruges Masters 2018"]
[Site "Brugge"]
[Date "2018.08.16"]
[Round "3"]
[White "Chaerle, Josse"]
[Black "Bisby, Daniel L"]
[Result "0-1"]
[ECO "E94"]
[WhiteElo "1996"]
[BlackElo "2314"]
[Annotator "NA"]
[PlyCount "84"]
[EventDate "2018.08.12"]
[EventType "swiss"]
[EventCountry "BEL"]
[SourceTitle "playchess.com"]
[Source "ChessBase"]
[SourceQuality "1"]
[TimeControl "5400+30"]

1. Nf3 {[%emt 0:00:00]} d6 {[%emt 0:00:10]} 2. d4 {[%emt 0:02:07]} Nf6 {[%emt 0:00:53]} 3. c4 {[%emt 0:03:03]} g6 {[%emt 0:00:11]} 4. Nc3 {[%emt 0:00:10]} Bg7 {[%emt 0:00:22]} 5. e4 {[%emt 0:00:18]} O-O {[%emt 0:00:13]} 6. h3 {[%emt 0:00:21]} Nbd7 {[%emt 0:04:44]} 7. Be2 {[%emt 0:06:19]} e5 {[%emt 0:00:30]} 8. dxe5 {[%emt 0:00:49]} dxe5 {[%emt 0:00:10]} 9. Be3 {[%emt 0:00:42]} c6 {[%emt 0:04:11]} 10. Qc2 {[%emt 0:23:54]} Qe7 {[%emt 0:03:14]} 11. O-O {[%emt 0:03:04]} Nh5 {[%emt 0:04:31]} 12. Rfe1 {[%emt 0:13:55]} Nf4 {[%emt 0:04:08]} 13. Bf1 {[%emt 0:04:31]} Qf6 {[%emt 0:05:49]} 14. Nd2 {[%emt 0:05:32]} Ne6 {[%emt 0:02:01]} 15. b4 {[%emt 0:00:35]} Nd4 {[%emt 0:02:31]} 16. Qb2 {[%emt 0:00:46]} Rd8 {[%emt 0:06:59]} 17. Rad1 {[%emt 0:09:20]} Nf8 {[%emt 0:03:05]} 18. c5 {[%emt 0:06:05]} Nfe6 {[%emt 0:03:30]} 19. Nc4 {[%emt 0:01:51]} Nf4 {[%emt 0:22:54]} 20. Bxf4 {[%emt 0:06:47]} Qxf4 {[%emt 0:01:34]} 21. Ne2 {[%emt 0:00:34]} Qg5 {[%emt 0:08:24]} 22. Nxd4 {[%emt 0:00:57]} exd4 {[%emt 0:00:32]} 23. Qb3 {[%emt 0:05:45]} Be6 {[%emt 0:00:44]} 24. Qf3 {[%emt 0:00:09]} b6 {[%emt 0:03:16]} 25. cxb6 {[%emt 0:03:00]} axb6 {[%emt 0:00:10]} 26. a3 {[%emt 0:00:19]} Rab8 {[%emt 0:02:59]} 27. Nb2 {[%emt 0:01:38]} c5 {[%emt 0:01:20]} 28. Rc1 {[%emt 0:00:32]} Qe7 {[%emt 0:02:50]} 29. b5 {[%emt 0:00:26]} Ra8 {[%emt 0:01:06]} 30. Nc4 {[%emt 0:00:27]} Bxc4 {[%emt 0:00:41]} 31. Bxc4 {[%emt 0:00:12]} d3 {[%emt 0:00:13]} 32. Red1 {[%emt 0:01:07]} Rxa3 {[%emt 0:02:33]} 33. Bd5 {[%emt 0:00:09]} Bb2 {[%emt 0:02:32]} 34. Rb1 {[%emt 0:00:35]} d2 {[%emt 0:01:40]} 35. Qxf7+ {[%emt 0:00:28]} Qxf7 {[%emt 0:00:08]} 36. Bxf7+ {[%emt 0:00:03]} Kxf7 {[%emt 0:00:06]} 37. Rxb2 {[%emt 0:00:02]} Rad3 {[%emt 0:00:37]} 38. Rc2 {[%emt 0:01:23]} R8d4 {[%emt 0:00:49]} 39. Kf1 {[%emt 0:00:35]} c4 {[%emt 0:00:11]} 40. f3 {[%emt 0:00:24]} c3 {[%emt 0:01:17]} 41. Ke2 {[%emt 0:00:36]} Ke6 {[%emt 0:00:29]} 42. Ra2 {[%emt 0:00:33]} g5 {[%emt 0:01:52]} 0-1

[Event "Bruges Masters 2018"]
[Site "Brugge"]
[Date "2018.08.16"]
[Round "4"]
[White "Nikolov, Momchil"]
[Black "Shyaamnikhil P"]
[Result "1/2-1/2"]
[ECO "E70"]
[WhiteElo "2549"]
[BlackElo "2389"]
[Annotator "ChessBase"]
[PlyCount "108"]
[EventDate "2018.08.12"]
[EventType "swiss"]
[EventCountry "BEL"]
[SourceTitle "playchess.com"]
[Source "ChessBase"]
[SourceQuality "1"]
[TimeControl "5400+30"]

1. d4 {[%emt 0:00:00]} Nf6 {[%emt 0:01:15]} 2. c4 {[%emt 0:00:00]} g6 {[%emt 0:01:29]} 3. Nc3 {[%emt 0:01:00]} c5 {[%emt 0:02:06]} 4. d5 {[%emt 0:03:01]} Bg7 {[%emt 0:00:18]} 5. e4 {[%emt 0:00:21]} O-O {[%emt 0:00:16]} 6. f3 {[%emt 0:03:37]} e6 {[%emt 0:03:05]} 7. Nh3 {[%emt 0:01:22]} a6 {[%emt 0:01:44]} 8. a4 {[%emt 0:00:22]} exd5 {[%emt 0:00:48]} 9. cxd5 {[%emt 0:00:08]} d6 {[%emt 0:00:25]} 10. Nf2 {[%emt 0:00:08]} Ne8 {[%emt 0:00:24]} 11. Bf4 {[%emt 0:08:46]} Nd7 {[%emt 0:04:32]} 12. Qd2 {[%emt 0:03:36]} f5 {[%emt 0:04:33]} 13. exf5 {[%emt 0:04:50]} gxf5 {[%emt 0:01:19]} 14. Be2 {[%emt 0:01:14]} Ne5 {[%emt 0:00:15]} 15. O-O {[%emt 0:01:38]} Ng6 {[%emt 0:04:56]} 16. Bg5 {[%emt 0:00:51]} Qc7 {[%emt 0:00:30]} 17. Nh3 {[%emt 0:02:13]} Qf7 {[%emt 0:19:41]} 18. Nf4 {[%emt 0:01:35]} Nc7 {[%emt 0:00:24]} 19. Nxg6 {[%emt 0:05:23]} Qxg6 {[%emt 0:01:33]} 20. a5 {[%emt 0:24:43]} Bd7 {[%emt 0:00:16]} 21. Rae1 {[%emt 0:01:18]} Rae8 {[%emt 0:11:00]} 22. Bf4 {[%emt 0:01:34]} Rf7 {[%emt 0:12:46]} 23. Bc4 {[%emt 0:02:18]} Rfe7 {[%emt 0:00:59]} 24. Rxe7 {[%emt 0:02:47]} Rxe7 {[%emt 0:00:06]} 25. Re1 {[%emt 0:00:29]} Rxe1+ {[%emt 0:03:30]} 26. Qxe1 {[%emt 0:00:07]} Qf6 {[%emt 0:00:29]} 27. Ne2 {[%emt 0:02:38]} Be8 {[%emt 0:07:11]} 28. b3 {[%emt 0:07:15]} Bf7 {[%emt 0:00:38]} 29. Qd2 {[%emt 0:00:18]} Nb5 {[%emt 0:02:06]} 30. h3 {[%emt 0:03:40]} Qa1+ {[%emt 0:09:10]} 31. Kh2 {[%emt 0:00:39]} Qf6 {[%emt 0:03:46]} 32. Qd3 {[%emt 0:02:52]} Be8 {[%emt 0:02:06]} 33. Bg3 {[%emt 0:04:05]} Bd7 {[%emt 0:00:43]} 34. Qe3 {[%emt 0:02:03]} Kf7 {[%emt 0:00:29]} 35. Bf4 {[%emt 0:02:18]} Qe7 {[%emt 0:00:42]} 36. Qf2 {[%emt 0:01:42]} Bf6 {[%emt 0:00:46]} 37. Ng3 {[%emt 0:02:45]} Bd4 {[%emt 0:00:58]} 38. Qd2 {[%emt 0:01:00]} Be5 {[%emt 0:01:11]} 39. Bxe5 {[%emt 0:00:50]} Qxe5 {[%emt 0:00:04]} 40. Qh6 {[%emt 0:02:38]} Qg7 {[%emt 0:00:07]} 41. Qh4 {[%emt 0:00:14]} Ke8 {[%emt 0:00:14]} 42. f4 {[%emt 0:01:26]} Qe7 {[%emt 0:00:31]} 43. Qh5+ {[%emt 0:00:16]} Qf7 {[%emt 0:00:05]} 44. Qg5 {[%emt 0:01:01]} Qg6 {[%emt 0:00:20]} 45. Nh5 {[%emt 0:00:52]} Bc8 {[%emt 0:00:47]} 46. Qh4 {[%emt 0:00:32]} h6 {[%emt 0:00:08]} 47. Qe1+ {[%emt 0:00:22]} Kd7 {[%emt 0:00:48]} 48. Ng3 {[%emt 0:00:12]} Kd8 {[%emt 0:00:43]} 49. b4 {[%emt 0:00:37]} Qe8 {[%emt 0:01:17]} 50. Qd2 {[%emt 0:00:38]} Bd7 {[%emt 0:00:46]} 51. Bxb5 {[%emt 0:00:39]} axb5 {[%emt 0:00:07]} 52. bxc5 {[%emt 0:00:31]} dxc5 {[%emt 0:00:06]} 53. Qc3 {[%emt 0:00:30]} Qe7 {[%emt 0:00:19]} 54. Qh8+ {[%emt 0:00:33]} Kc7 {[%emt 0:02:13]} 1/2-1/2

[Event "Bruges Masters 2018"]
[Site "Brugge"]
[Date "2018.08.16"]
[Round "4"]
[White "Zeng, Chongsheng"]
[Black "Gevorgyan, Maria"]
[Result "1-0"]
[ECO "D27"]
[WhiteElo "2539"]
[BlackElo "2228"]
[Annotator "ChessBase"]
[PlyCount "77"]
[EventDate "2018.08.12"]
[EventType "swiss"]
[EventCountry "BEL"]
[SourceTitle "playchess.com"]
[Source "ChessBase"]
[SourceQuality "1"]
[TimeControl "5400+30"]

1. d4 {[%emt 0:00:46]} d5 {[%emt 0:00:00]} 2. c4 {[%emt 0:00:07]} dxc4 {[%emt 0:00:00]} 3. e3 {[%emt 0:00:37]} e6 {[%emt 0:00:22]} 4. Bxc4 {[%emt 0:00:12]} Nf6 {[%emt 0:01:49]} 5. Nf3 {[%emt 0:02:17]} a6 {[%emt 0:00:04]} 6. O-O {[%emt 0:00:47]} c5 {[%emt 0:00:04]} 7. e4 {[%emt 0:02:23]} Nxe4 {[%emt 0:01:02]} 8. d5 {[%emt 0:00:43]} Nd6 {[%emt 0:28:36]} 9. dxe6 {[%emt 0:00:35]} fxe6 {[%emt 0:00:04]} 10. Bd3 {[%emt 0:03:43]} Nc6 {[%emt 0:02:15]} 11. Ng5 {[%emt 0:05:33]} g6 {[%emt 0:04:31]} 12. Nc3 {[%emt 0:06:48]} Be7 {[%emt 0:02:36]} 13. h4 {[%emt 0:09:30]} Nf5 {[%emt 0:09:02]} 14. g3 {[%emt 0:03:13]} h6 {[%emt 0:06:02]} 15. Nf3 {[%emt 0:02:09]} Nb4 {[%emt 0:10:33]} 16. Be4 {[%emt 0:00:46]} Qxd1 {[%emt 0:07:53]} 17. Rxd1 {[%emt 0:00:05]} Nc6 {[%emt 0:02:14]} 18. Bf4 {[%emt 0:06:42]} Bd7 {[%emt 0:06:46]} 19. Na4 {[%emt 0:06:43]} Ncd4 {[%emt 0:06:00]} 20. Nb6 {[%emt 0:01:40]} Rd8 {[%emt 0:01:33]} 21. Nxd4 {[%emt 0:02:29]} cxd4 {[%emt 0:02:22]} 22. Bc7 {[%emt 0:00:17]} Bc6 {[%emt 0:00:59]} 23. Bxc6+ {[%emt 0:00:46]} bxc6 {[%emt 0:00:01]} 24. Rac1 {[%emt 0:00:54]} Kf7 {[%emt 0:02:06]} 25. Bxd8 {[%emt 0:00:11]} Rxd8 {[%emt 0:00:30]} 26. Rxc6 {[%emt 0:00:06]} Bf6 {[%emt 0:01:51]} 27. Nc4 {[%emt 0:00:51]} Ra8 {[%emt 0:00:39]} 28. Re1 {[%emt 0:00:46]} Ng7 {[%emt 0:02:17]} 29. Nd6+ {[%emt 0:01:44]} Kf8 {[%emt 0:00:18]} 30. Ne4 {[%emt 0:00:33]} Be7 {[%emt 0:00:05]} 31. Rd1 {[%emt 0:00:19]} e5 {[%emt 0:01:17]} 32. Rxg6 {[%emt 0:00:07]} h5 {[%emt 0:00:01]} 33. Rh6 {[%emt 0:01:06]} Kf7 {[%emt 0:00:01]} 34. Rd3 {[%emt 0:00:12]} a5 {[%emt 0:00:07]} 35. Rc6 {[%emt 0:00:56]} a4 {[%emt 0:00:01]} 36. Rf3+ {[%emt 0:00:39]} Kg8 {[%emt 0:00:23]} 37. Rc7 {[%emt 0:00:48]} Bf8 {[%emt 0:00:16]} 38. Nf6+ {[%emt 0:00:17]} Kh8 {[%emt 0:00:01]} 39. Rf5 {[%emt 0:00:18]} 1-0

[Event "Bruges Masters 2018"]
[Site "Brugge"]
[Date "2018.08.16"]
[Round "4"]
[White "Dgebuadze, Alexandre"]
[Black "Decrop, Benjamin"]
[Result "1-0"]
[ECO "B47"]
[WhiteElo "2511"]
[BlackElo "2211"]
[Annotator "ChessBase"]
[PlyCount "89"]
[EventDate "2018.08.12"]
[EventType "swiss"]
[EventCountry "BEL"]
[SourceTitle "playchess.com"]
[Source "ChessBase"]
[SourceQuality "1"]
[TimeControl "5400+30"]

1. e4 {[%emt 0:00:00]} c5 {[%emt 0:00:00]} 2. Nc3 {[%emt 0:00:00]} Nc6 {[%emt 0:00:00]} 3. Nge2 {[%emt 0:00:06]} e6 {[%emt 0:00:47]} 4. d4 {[%emt 0:00:57]} cxd4 {[%emt 0:00:06]} 5. Nxd4 {[%emt 0:00:03]} Qc7 {[%emt 0:00:05]} 6. Ndb5 {[%emt 0:01:53]} Qb8 {[%emt 0:00:08]} 7. g3 {[%emt 0:00:10]} a6 {[%emt 0:00:27]} 8. Nd4 {[%emt 0:00:05]} Nf6 {[%emt 0:02:13]} 9. Bg2 {[%emt 0:00:19]} Qc7 {[%emt 0:00:07]} 10. O-O {[%emt 0:00:37]} Nxd4 {[%emt 0:00:04]} 11. Qxd4 {[%emt 0:00:07]} Bc5 {[%emt 0:00:03]} 12. Bf4 {[%emt 0:02:24]} d6 {[%emt 0:00:06]} 13. Qd2 {[%emt 0:00:39]} h6 {[%emt 0:00:41]} 14. Rad1 {[%emt 0:12:44]} e5 {[%emt 0:01:08]} 15. Be3 {[%emt 0:00:04]} Be6 {[%emt 0:00:25]} 16. Bxc5 {[%emt 0:00:57]} dxc5 {[%emt 0:00:07]} 17. f4 {[%emt 0:00:35]} O-O {[%emt 0:18:54]} 18. Qd6 {[%emt 0:03:22]} Qxd6 {[%emt 0:38:52]} 19. Rxd6 {[%emt 0:01:15]} Rfd8 {[%emt 0:01:45]} 20. Rfd1 {[%emt 0:03:06]} Rxd6 {[%emt 0:04:23]} 21. Rxd6 {[%emt 0:01:13]} Kf8 {[%emt 0:00:02]} 22. Bf3 {[%emt 0:22:22]} Ke7 {[%emt 0:01:40]} 23. fxe5 {[%emt 0:00:56]} Nd7 {[%emt 0:02:07]} 24. Nd5+ {[%emt 0:00:26]} Bxd5 {[%emt 0:00:29]} 25. Rxd5 {[%emt 0:00:03]} Rd8 {[%emt 0:01:39]} 26. Kf2 {[%emt 0:04:09]} b6 {[%emt 0:00:47]} 27. Bh5 {[%emt 0:07:05]} g6 {[%emt 0:16:14]} 28. Bg4 {[%emt 0:05:04]} Nf8 {[%emt 0:03:39]} 29. Be2 {[%emt 0:06:04]} a5 {[%emt 0:01:23]} 30. Bc4 {[%emt 0:01:11]} Rd7 {[%emt 0:04:38]} 31. Ke3 {[%emt 0:04:13]} g5 {[%emt 0:00:26]} 32. Bb5 {[%emt 0:04:25]} Rd8 {[%emt 0:00:15]} 33. Kd3 {[%emt 0:00:56]} Ne6 {[%emt 0:01:20]} 34. Bc4 {[%emt 0:00:33]} Rd7 {[%emt 0:01:00]} 35. c3 {[%emt 0:03:22]} Nf8 {[%emt 0:00:41]} 36. Bb5 {[%emt 0:00:17]} Rd8 {[%emt 0:00:28]} 37. Rxd8 {[%emt 0:03:28]} Kxd8 {[%emt 0:00:03]} 38. Kc4 {[%emt 0:00:05]} Ne6 {[%emt 0:01:08]} 39. Kd5 {[%emt 0:00:13]} Nc7+ {[%emt 0:00:36]} 40. Kc6 {[%emt 0:00:14]} Nxb5 {[%emt 0:00:03]} 41. Kxb5 {[%emt 0:01:13]} Kc7 {[%emt 0:00:03]} 42. g4 {[%emt 0:00:46]} Kb7 {[%emt 0:00:03]} 43. a4 {[%emt 0:00:51]} Kc7 {[%emt 0:00:09]} 44. Kc4 {[%emt 0:00:53]} Kc6 {[%emt 0:00:19]} 45. b3 {[%emt 0:00:10]} 1-0

[Event "Bruges Masters 2018"]
[Site "Brugge"]
[Date "2018.08.16"]
[Round "4"]
[White "Wan, Yunguo"]
[Black "Turner, Matthew J"]
[Result "1-0"]
[ECO "C54"]
[WhiteElo "2501"]
[BlackElo "2533"]
[Annotator "ChessBase"]
[PlyCount "173"]
[EventDate "2018.08.12"]
[EventType "swiss"]
[EventCountry "BEL"]
[SourceTitle "playchess.com"]
[Source "ChessBase"]
[SourceQuality "1"]
[TimeControl "5400+30"]

1. e4 {[%emt 0:02:25]} e5 {[%emt 0:00:00]} 2. Nf3 {[%emt 0:00:15]} Nc6 {[%emt 0:00:00]} 3. Bc4 {[%emt 0:00:26]} Bc5 {[%emt 0:00:19]} 4. c3 {[%emt 0:00:28]} Nf6 {[%emt 0:00:22]} 5. d4 {[%emt 0:00:11]} exd4 {[%emt 0:00:22]} 6. e5 {[%emt 0:00:06]} d5 {[%emt 0:03:22]} 7. Bb5 {[%emt 0:00:08]} Ne4 {[%emt 0:01:58]} 8. cxd4 {[%emt 0:00:07]} Be7 {[%emt 0:04:19]} 9. Nc3 {[%emt 0:00:17]} O-O {[%emt 0:00:41]} 10. h3 {[%emt 0:00:05]} f6 {[%emt 0:02:58]} 11. O-O {[%emt 0:13:31]} Nxc3 {[%emt 0:06:42]} 12. bxc3 {[%emt 0:00:10]} fxe5 {[%emt 0:00:20]} 13. dxe5 {[%emt 0:02:30]} Nb8 {[%emt 0:09:56]} 14. Bd3 {[%emt 0:12:09]} Nd7 {[%emt 0:01:54]} 15. Qc2 {[%emt 0:14:40]} Rxf3 {[%emt 0:21:46]} 16. gxf3 {[%emt 0:00:37]} Nf8 {[%emt 0:01:44]} 17. Bf5 {[%emt 0:05:36]} g6 {[%emt 0:00:44]} 18. Bxc8 {[%emt 0:04:27]} Qxc8 {[%emt 0:00:45]} 19. Qd3 {[%emt 0:01:05]} Qxh3 {[%emt 0:01:51]} 20. Qxd5+ {[%emt 0:00:08]} Ne6 {[%emt 0:00:24]} 21. Qe4 {[%emt 0:06:25]} Rf8 {[%emt 0:00:42]} 22. Qg4 {[%emt 0:01:01]} Rxf3 {[%emt 0:00:25]} 23. Qxh3 {[%emt 0:00:06]} Rxh3 {[%emt 0:00:04]} 24. Be3 {[%emt 0:00:54]} b6 {[%emt 0:03:02]} 25. Kg2 {[%emt 0:03:05]} Rh5 {[%emt 0:00:12]} 26. f4 {[%emt 0:00:06]} Rf5 {[%emt 0:00:16]} 27. Kf3 {[%emt 0:03:17]} Ng5+ {[%emt 0:10:09]} 28. Ke2 {[%emt 0:01:24]} Ne4 {[%emt 0:00:17]} 29. Kd3 {[%emt 0:00:14]} Ng3 {[%emt 0:00:14]} 30. Rf3 {[%emt 0:01:23]} Nh5 {[%emt 0:00:04]} 31. a4 {[%emt 0:06:20]} Kf7 {[%emt 0:02:20]} 32. Ke4 {[%emt 0:03:03]} Ke6 {[%emt 0:00:16]} 33. Rh3 {[%emt 0:00:36]} a5 {[%emt 0:02:09]} 34. Rd1 {[%emt 0:01:06]} Rf7 {[%emt 0:06:28]} 35. Rd2 {[%emt 0:02:34]} Bc5 {[%emt 0:02:14]} 36. Bxc5 {[%emt 0:01:49]} Rxf4+ {[%emt 0:00:40]} 37. Ke3 {[%emt 0:00:05]} Rxa4 {[%emt 0:01:31]} 38. Bf8 {[%emt 0:01:21]} Rc4 {[%emt 0:00:47]} 39. Kd3 {[%emt 0:01:46]} b5 {[%emt 0:00:05]} 40. Kc2 {[%emt 0:03:12]} b4 {[%emt 0:01:05]} 41. Rd4 {[%emt 0:01:43]} Rc6 {[%emt 0:00:39]} 42. Kb3 {[%emt 0:00:18]} bxc3 {[%emt 0:00:31]} 43. Rxc3 {[%emt 0:00:14]} Rxc3+ {[%emt 0:00:26]} 44. Kxc3 {[%emt 0:00:01]} Kxe5 {[%emt 0:00:08]} 45. Rd7 {[%emt 0:00:44]} Nf6 {[%emt 0:00:25]} 46. Re7+ {[%emt 0:00:40]} Kf5 {[%emt 0:00:20]} 47. Kd2 {[%emt 0:00:44]} h5 {[%emt 0:01:38]} 48. Rf7 {[%emt 0:01:24]} Ke6 {[%emt 0:00:39]} 49. Rxc7 {[%emt 0:00:05]} g5 {[%emt 0:00:15]} 50. Ke2 {[%emt 0:00:32]} h4 {[%emt 0:00:51]} 51. Kf3 {[%emt 0:02:40]} g4+ {[%emt 0:00:14]} 52. Kg2 {[%emt 0:00:04]} Nd5 {[%emt 0:00:31]} 53. Rc6+ {[%emt 0:00:58]} Kf5 {[%emt 0:00:15]} 54. Bh6 {[%emt 0:00:48]} h3+ {[%emt 0:01:18]} 55. Kg3 {[%emt 0:00:11]} Nf6 {[%emt 0:00:05]} 56. Ra6 {[%emt 0:00:23]} Ne4+ {[%emt 0:04:45]} 57. Kh2 {[%emt 0:00:07]} Nc3 {[%emt 0:00:20]} 58. Rxa5+ {[%emt 0:00:35]} Ke4 {[%emt 0:00:07]} 59. Rg5 {[%emt 0:00:54]} Kf3 {[%emt 0:01:00]} 60. Rf5+ {[%emt 0:00:08]} Ke2 {[%emt 0:00:25]} 61. Rf4 {[%emt 0:00:27]} Kd3 {[%emt 0:00:06]} 62. Rxg4 {[%emt 0:00:14]} Ne4 {[%emt 0:00:02]} 63. Rg8 {[%emt 0:00:13]} Nf2 {[%emt 0:00:44]} 64. Bf4 {[%emt 0:00:33]} Ke4 {[%emt 0:00:29]} 65. Bg3 {[%emt 0:00:05]} Nd3 {[%emt 0:00:04]} 66. Kxh3 {[%emt 0:00:04]} Nc5 {[%emt 0:00:12]} 67. Kg4 {[%emt 0:00:07]} Ne6 {[%emt 0:00:22]} 68. Ra8 {[%emt 0:00:28]} Nd4 {[%emt 0:00:23]} 69. Re8+ {[%emt 0:00:31]} Kd5 {[%emt 0:00:07]} 70. Kf4 {[%emt 0:00:16]} Ne6+ {[%emt 0:00:06]} 71. Ke3 {[%emt 0:00:07]} Nc5 {[%emt 0:00:19]} 72. Rd8+ {[%emt 0:00:26]} Kc4 {[%emt 0:00:22]} 73. Rd4+ {[%emt 0:00:41]} Kb5 {[%emt 0:00:05]} 74. Bd6 {[%emt 0:00:05]} Ne6 {[%emt 0:00:18]} 75. Re4 {[%emt 0:00:14]} Nd8 {[%emt 0:00:08]} 76. Kd4 {[%emt 0:00:18]} Kc6 {[%emt 0:00:47]} 77. Bc5 {[%emt 0:00:37]} Nb7 {[%emt 0:00:49]} 78. Re6+ {[%emt 0:00:08]} Kd7 {[%emt 0:00:07]} 79. Rh6 {[%emt 0:00:12]} Nd8 {[%emt 0:00:39]} 80. Kd5 {[%emt 0:00:09]} Nf7 {[%emt 0:00:08]} 81. Re6 {[%emt 0:00:38]} Nd8 {[%emt 0:00:28]} 82. Re7+ {[%emt 0:00:06]} Kc8 {[%emt 0:00:03]} 83. Bb6 {[%emt 0:00:19]} Nb7 {[%emt 0:00:20]} 84. Kc6 {[%emt 0:00:10]} Nd8+ {[%emt 0:00:24]} 85. Bxd8 {[%emt 0:00:08]} Kxd8 {[%emt 0:00:03]} 86. Re6 {[%emt 0:00:06]} Kc8 {[%emt 0:00:03]} 87. Re8# {[%emt 0:00:06]} 1-0